fUSD/lending_fUSD_20250524
["ID","MTS","AMOUNT","RATE_DAILY","PERIOD"]
[362244181,1748117464875,-599.9,0.00019506,2]
[362244182,1748117464885,-2039.49,0.00019506,2]
[362244183,1748117464895,-420.0,0.00019506,2]
[362244184,1748117464905,-151.0,0.00019506,2]
[362244185,1748117464915,-282.262676,0.00019506,2]
[362244186,1748117464925,-1336.66,0.00019506,2]
[362244187,1748117464936,-152.925138,0.00019506,2]
[362244188,1748117464946,-282.262676,0.00019506,2]
[362244189,1748117464956,-151.0,0.00019506,2]
[362244190,1748117464966,-2331.45,0.00019506,2]
[362244191,1748117464976,-420.0,0.00019506,2]
[362244192,1748117464986,-2331.48,0.00019506,2]
[362244193,1748117464995,-420.0,0.00019506,2]
[362244194,1748117465006,-420.0,0.00019506,2]
[362244195,1748117465017,-1010.17,0.00019506,2]
[362244196,1748117465027,-476.38,0.00019506,2]
[362244197,1748117465036,-2012.08,0.00019506,2]
[362244198,1748117465046,-154.12694,0.00019506,2]
[362244199,1748117465056,-6143.93,0.00019506,2]
[362244200,1748117465066,-420.0,0.00019506,2]
[362244201,1748117465076,-4396.86,0.00019506,2]
[362244202,1748117465086,-151.0,0.00019506,2]
[362244203,1748117465096,-289.24005639,0.00019506,2]
[362244204,1748117465106,-152.925138,0.00019506,2]
[362244205,1748117465116,-4230.85,0.00019506,2]
[362244206,1748117465127,-7374.08,0.00019506,2]
[362244207,1748117465137,-443.68,0.00019506,2]
[362244208,1748117465147,-518.18650171,0.00019506,2]
[362244209,1748117465156,-151.0,0.00019506,2]
[362244210,1748117465167,-1352.04,0.00019506,2]
[362244211,1748117465177,-420.0,0.00019506,2]
[362244212,1748117465187,-420.0,0.00019506,2]
[362244213,1748117465197,-151.0,0.00019506,2]
[362244214,1748117465404,-215.105622,0.00019506,2]
[362244215,1748117465454,-713.21,0.00019506,2]
[362244216,1748117465464,-2498.63,0.00019506,2]
[362244217,1748117465475,-215.105622,0.00019506,2]
[362244218,1748117465485,-665.35,0.00019506,2]
[362244219,1748117465494,-807.50637,0.00019506,2]
[362244220,1748117465504,-3833.23,0.00019506,2]
[362244221,1748117465513,-807.50637,0.00019506,2]
[362244222,1748117465524,-151.0,0.00019506,2]
[362244223,1748117465534,-420.0,0.00019506,2]
[362244224,1748117465544,-508.45,0.00019506,2]
[362244225,1748117465554,-5208.31,0.00019506,2]
[362244226,1748117465564,-539.64187071,0.00019506,2]
[362244227,1748117465574,-500.0,0.00019507,2]
[362244228,1748117465584,-152.464525,0.00019534,2]
[362244229,1748117465593,-151.0,0.00019534,2]
[362244230,1748117465602,-1385.27,0.00019534,2]
[362244231,1748117465612,-908.32,0.00019534,2]
[362244232,1748117465622,-985.75,0.00019534,2]
[362244233,1748117465632,-618.23,0.00019534,2]
[362244234,1748117465641,-849.67,0.00019534,2]
[362244235,1748117465651,-420.0,0.00019534,2]
[362244236,1748117465661,-420.0,0.00019534,2]
[362244237,1748117465671,-1157.53,0.00019534,2]
[362244238,1748117465681,-886.04,0.00019534,2]
[362244239,1748117465691,-457.91286068,0.00019534,2]
[362244240,1748117465701,-420.0,0.00019534,2]
[362244241,1748117465711,-420.0,0.00019534,2]
[362244242,1748117465721,-943.28,0.00019534,2]
[362244243,1748117465730,-5653.33,0.00019534,2]
[362244244,1748117465740,-529.4,0.00019534,2]
[362244245,1748117465750,-3961.59,0.00019534,2]
[362244246,1748117465759,-1625.46,0.00019534,2]
[362244247,1748117465769,-2212.53,0.00019534,2]
[362244248,1748117465779,-11025.39,0.00019534,2]
[362244249,1748117465789,-1103.27,0.00019534,2]
[362244250,1748117465798,-915.43,0.00019534,2]
[362244251,1748117465809,-458.48,0.00019534,2]
[362244252,1748117465818,-1622.93,0.00019534,2]
[362244253,1748117465828,-139411.7,0.00019534,2]
[362244254,1748117465838,-5710.99,0.00019534,2]
[362244255,1748117465849,-2122.1,0.00019534,2]
[362244256,1748117465862,-506.07,0.00019534,2]
[362244257,1748117465871,-599.9,0.00019534,2]
[362244258,1748117465882,-2039.49,0.00019534,2]
[362244259,1748117465892,-420.0,0.00019534,2]
[362244260,1748117465902,-1336.66,0.00019534,2]
[362244261,1748117465911,-2331.45,0.00019534,2]
[362244262,1748117465920,-245.2811206,0.00019534,2]
[362244263,1748117465931,-2331.48,0.00019534,2]
[362244264,1748117465940,-420.0,0.00019534,2]
[362244265,1748117465951,-420.0,0.00019534,2]
[362244266,1748117465960,-1010.17,0.00019534,2]
[362244267,1748117465969,-476.38,0.00019534,2]
[362244268,1748117465979,-2012.08,0.00019534,2]
[362244269,1748117465989,-6143.93,0.00019534,2]
[362244270,1748117465998,-420.0,0.00019534,2]
[362244271,1748117466008,-4396.86,0.00019534,2]
[362244272,1748117466018,-4230.85,0.00019534,2]
[362244273,1748117466028,-7374.08,0.00019534,2]
[362244274,1748117466037,-443.68,0.00019534,2]
[362244275,1748117466047,-1352.04,0.00019534,2]
[362244276,1748117466057,-420.0,0.00019534,2]
[362244277,1748117466067,-420.0,0.00019534,2]
[362244278,1748117466076,-713.21,0.00019534,2]
[362244279,1748117466085,-2498.63,0.00019534,2]
[362244280,1748117466095,-665.35,0.00019534,2]
[362244281,1748117466104,-3833.23,0.00019534,2]
[362244282,1748117466115,-420.0,0.00019534,2]
[362244283,1748117466124,-508.45,0.00019534,2]
[362244284,1748117466134,-152.464525,0.00019561,2]
[362244285,1748117466144,-1385.27,0.00019561,2]
[362244286,1748117466153,-908.32,0.00019561,2]
[362244287,1748117466163,-985.75,0.00019561,2]
[362244288,1748117466173,-618.23,0.00019561,2]
[362244289,1748117466183,-849.67,0.00019561,2]
[362244290,1748117466192,-420.0,0.00019561,2]
[362244291,1748117466202,-420.0,0.00019561,2]
[362244292,1748117466211,-1157.53,0.00019561,2]
[362244293,1748117466221,-886.04,0.00019561,2]
[362244294,1748117466230,-151.0,0.00019561,2]
[362244295,1748117466240,-151.0,0.00019561,2]
[362244296,1748117466249,-420.0,0.00019561,2]
[362244297,1748117466258,-151.0,0.00019561,2]
[362244298,1748117466268,-151.0,0.00019561,2]
[362244299,1748117466277,-420.0,0.00019561,2]
[362244300,1748117466286,-151.0,0.00019561,2]
[362244301,1748117466296,-943.28,0.00019561,2]
[362244302,1748117466306,-5653.33,0.00019561,2]
[362244303,1748117466316,-529.4,0.00019561,2]
[362244304,1748117466326,-3961.59,0.00019561,2]
[362244305,1748117466336,-1625.46,0.00019561,2]
[362244306,1748117466346,-2212.53,0.00019561,2]
[362244307,1748117466356,-11025.39,0.00019561,2]
[362244308,1748117466365,-1103.27,0.00019561,2]
[362244309,1748117466375,-915.43,0.00019561,2]
[362244310,1748117466385,-458.48,0.00019561,2]
[362244311,1748117466394,-1622.93,0.00019561,2]
[362244312,1748117466404,-139411.7,0.00019561,2]
[362244313,1748117466413,-5710.99,0.00019561,2]
[362244314,1748117466423,-2122.1,0.00019561,2]
[362244315,1748117466433,-506.07,0.00019561,2]
[362244316,1748117466443,-599.9,0.00019561,2]
[362244317,1748117466452,-151.0,0.00019561,2]
[362244318,1748117466461,-2039.49,0.00019561,2]
[362244319,1748117466471,-420.0,0.00019561,2]
[362244320,1748117466480,-1336.66,0.00019561,2]
[362244321,1748117466490,-2331.45,0.00019561,2]
[362244322,1748117466499,-2331.48,0.00019561,2]
[362244323,1748117466509,-420.0,0.00019561,2]
[362244324,1748117466518,-420.0,0.00019561,2]
[362244325,1748117466527,-1010.17,0.00019561,2]
[362244326,1748117466536,-476.38,0.00019561,2]
[362244327,1748117466546,-2012.08,0.00019561,2]
[362244328,1748117466555,-6143.93,0.00019561,2]
[362244329,1748117466565,-420.0,0.00019561,2]
[362244330,1748117466574,-4396.86,0.00019561,2]
[362244331,1748117466584,-151.0,0.00019561,2]
[362244332,1748117466593,-4230.85,0.00019561,2]
[362244333,1748117466603,-7374.08,0.00019561,2]
[362244334,1748117466613,-443.68,0.00019561,2]
[362244335,1748117466622,-1352.04,0.00019561,2]
[362244336,1748117466631,-420.0,0.00019561,2]
[362244337,1748117466640,-157.892716,0.00019561,2]
[362244338,1748117466649,-420.0,0.00019561,2]
[362244339,1748117466659,-713.21,0.00019561,2]
[362244340,1748117466668,-2498.63,0.00019561,2]
[362244341,1748117466677,-665.35,0.00019561,2]
[362244342,1748117466687,-807.50637,0.00019561,2]
[362244343,1748117466696,-3833.23,0.00019561,2]
[362244344,1748117466706,-807.50637,0.00019561,2]
[362244345,1748117466715,-420.0,0.00019561,2]
[362244346,1748117466725,-508.45,0.00019561,2]
[362244347,1748117466736,-5703.0622086,0.00019585,2]
[362244348,1748117466746,-148046.7852832,0.00019585,2]
[362244349,1748117466757,-151.0,0.00019585,2]
[362244350,1748117466767,-151.0,0.00019585,2]
[362244351,1748117466776,-151.0,0.00019585,2]
[362244352,1748117466786,-497.422868,0.00019585,2]
[362244353,1748117466796,-497.422868,0.00019585,2]
[362244354,1748117466806,-11737.8549799,0.00019585,2]
[362244355,1748117466816,-263.93542,0.00019585,2]
[362244356,1748117466825,-151.0,0.00019585,2]
[362244357,1748117466835,-263.93542,0.00019585,2]
[362244358,1748117466845,-151.0,0.00019585,2]
[362244359,1748117466854,-151.0,0.00019585,2]
[362244360,1748117466866,-282.262676,0.00019585,2]
[362244361,1748117466875,-282.262676,0.00019585,2]
[362244362,1748117466886,-151.0,0.00019585,2]
[362244363,1748117466896,-226.282379,0.00019585,2]
[362244364,1748117466908,-151.0,0.00019585,2]
[362244365,1748117466917,-215.105622,0.00019585,2]
[362244366,1748117466927,-215.105622,0.00019585,2]
[362244367,1748117466938,-151.0,0.00019587,2]
[362244368,1748117466949,-151.0,0.00019587,2]
[362244369,1748117466960,-151.0,0.00019587,2]
[362244370,1748117466970,-151.0,0.00019589,2]
[362244371,1748117466980,-1385.27,0.00019589,2]
[362244372,1748117466991,-908.32,0.00019589,2]
[362244373,1748117467001,-985.75,0.00019589,2]
[362244374,1748117467012,-618.23,0.00019589,2]
[362244375,1748117467023,-849.67,0.00019589,2]
[362244376,1748117467036,-420.0,0.00019589,2]
[362244377,1748117467047,-420.0,0.00019589,2]
[362244378,1748117467056,-1157.53,0.00019589,2]
[362244379,1748117467065,-886.04,0.00019589,2]
[362244380,1748117467075,-509.57170752,0.00019589,2]
[362244381,1748117467084,-282.02948676,0.00019589,2]
[362244382,1748117467094,-943.28,0.00019589,2]
[362244383,1748117467104,-5653.33,0.00019589,2]
[362244384,1748117467114,-529.4,0.00019589,2]
[362244385,1748117467123,-3961.59,0.00019589,2]
[362244386,1748117467132,-1625.46,0.00019589,2]
[362244387,1748117467142,-2212.53,0.00019589,2]
[362244388,1748117467151,-11025.39,0.00019589,2]
[362244389,1748117467160,-1103.27,0.00019589,2]
[362244390,1748117467170,-915.43,0.00019589,2]
[362244391,1748117467179,-458.48,0.00019589,2]
[362244392,1748117467188,-1622.93,0.00019589,2]
[362244393,1748117467198,-139411.7,0.00019589,2]
[362244394,1748117467208,-5710.99,0.00019589,2]
[362244395,1748117467217,-2122.1,0.00019589,2]
[362244396,1748117467227,-506.07,0.00019589,2]
[362244397,1748117467236,-599.9,0.00019589,2]
[362244398,1748117467248,-2039.49,0.00019589,2]
[362244399,1748117467257,-420.0,0.00019589,2]
[362244400,1748117467267,-1336.66,0.00019589,2]
[362244401,1748117467276,-2331.45,0.00019589,2]
[362244402,1748117467287,-2331.48,0.00019589,2]
[362244403,1748117467298,-420.0,0.00019589,2]
[362244404,1748117467308,-420.0,0.00019589,2]
[362244405,1748117467317,-1010.17,0.00019589,2]
[362244406,1748117467327,-476.38,0.00019589,2]
[362244407,1748117467336,-2012.08,0.00019589,2]
[362244408,1748117467346,-6143.93,0.00019589,2]
[362244409,1748117467357,-420.0,0.00019589,2]
[362244410,1748117467366,-4396.86,0.00019589,2]
[362244411,1748117467376,-4230.85,0.00019589,2]
[362244412,1748117467385,-7374.08,0.00019589,2]
[362244413,1748117467395,-443.68,0.00019589,2]
[362244414,1748117467404,-1352.04,0.00019589,2]
[362244415,1748117467414,-420.0,0.00019589,2]
[362244416,1748117467423,-420.0,0.00019589,2]
[362244417,1748117467434,-713.21,0.00019589,2]
[362244418,1748117467443,-2498.63,0.00019589,2]
[362244419,1748117467453,-665.35,0.00019589,2]
[362244420,1748117467463,-3833.23,0.00019589,2]
[362244421,1748117467473,-420.0,0.00019589,2]
[362244422,1748117467483,-508.45,0.00019589,2]
[362244423,1748117467492,-2140.9311985,0.00019598,2]
[362244424,1748117467502,-353.58,0.000196,2]
[362244425,1748117467512,-752.04508599,0.00019616,2]
[362244426,1748117467521,-152.464525,0.00019616,2]
[362244427,1748117467531,-152.925138,0.00019616,2]
[362244428,1748117467540,-1385.27,0.00019616,2]
[362244429,1748117467550,-908.32,0.00019616,2]
[362244430,1748117467559,-985.75,0.00019616,2]
[362244431,1748117467568,-618.23,0.00019616,2]
[362244432,1748117467577,-849.67,0.00019616,2]
[362244433,1748117467587,-420.0,0.00019616,2]
[362244434,1748117467597,-420.0,0.00019616,2]
[362244435,1748117467606,-1157.53,0.00019616,2]
[362244436,1748117467616,-886.04,0.00019616,2]
[362244437,1748117467625,-151.0,0.00019616,2]
[362244438,1748117467635,-242.926928,0.00019616,2]
[362244439,1748117467644,-151.0,0.00019616,2]
[362244440,1748117467653,-374.185702,0.00019616,2]
[362244441,1748117467662,-374.185702,0.00019616,2]
[362244442,1748117467675,-258.793691,0.00019616,2]
[362244443,1748117467684,-151.0,0.00019616,2]
[362244444,1748117467693,-151.0,0.00019616,2]
[362244445,1748117467703,-943.28,0.00019616,2]
[362244446,1748117467712,-5653.33,0.00019616,2]
[362244447,1748117467722,-529.4,0.00019616,2]
[362244448,1748117467731,-3961.59,0.00019616,2]
[362244449,1748117467741,-1625.46,0.00019616,2]
[362244450,1748117467800,-2212.53,0.00019616,2]
[362244451,1748117467809,-11025.39,0.00019616,2]
[362244452,1748117467819,-1103.27,0.00019616,2]
[362244453,1748117467828,-915.43,0.00019616,2]
[362244454,1748117467837,-458.48,0.00019616,2]
[362244455,1748117467846,-1622.93,0.00019616,2]
[362244456,1748117467856,-139411.7,0.00019616,2]
[362244457,1748117467870,-5710.99,0.00019616,2]
[362244458,1748117467879,-2122.1,0.00019616,2]
[362244459,1748117467889,-506.07,0.00019616,2]
[362244460,1748117467898,-599.9,0.00019616,2]
[362244461,1748117467907,-2039.49,0.00019616,2]
[362244462,1748117467916,-420.0,0.00019616,2]
[362244463,1748117467925,-1336.66,0.00019616,2]
[362244464,1748117467935,-2331.45,0.00019616,2]
[362244465,1748117467944,-2331.48,0.00019616,2]
[362244466,1748117467954,-420.0,0.00019616,2]
[362244467,1748117467963,-420.0,0.00019616,2]
[362244468,1748117467972,-1010.17,0.00019616,2]
[362244469,1748117467982,-476.38,0.00019616,2]
[362244470,1748117467992,-2012.08,0.00019616,2]
[362244471,1748117468001,-6143.93,0.00019616,2]
[362244472,1748117468011,-420.0,0.00019616,2]
[362244473,1748117468020,-4396.86,0.00019616,2]
[362244474,1748117468029,-151.0,0.00019616,2]
[362244475,1748117468039,-4230.85,0.00019616,2]
[362244476,1748117468048,-7374.08,0.00019616,2]
[362244477,1748117468057,-443.68,0.00019616,2]
[362244478,1748117468067,-1352.04,0.00019616,2]
[362244479,1748117468075,-420.0,0.00019616,2]
[362244480,1748117468084,-420.0,0.00019616,2]
[362244481,1748117468093,-713.21,0.00019616,2]
[362244482,1748117468102,-2498.63,0.00019616,2]
[362244483,1748117468111,-807.50637,0.00019616,2]
[362244484,1748117468120,-665.35,0.00019616,2]
[362244485,1748117468129,-3833.23,0.00019616,2]
[362244486,1748117468139,-807.50637,0.00019616,2]
[362244487,1748117468147,-420.0,0.00019616,2]
[362244488,1748117468157,-508.45,0.00019616,2]
[362244489,1748117468166,-53606.4796406,0.00019643,2]
[362244490,1748117468175,-152.464525,0.00019643,2]
[362244491,1748117468184,-1385.27,0.00019643,2]
[362244492,1748117468194,-908.32,0.00019643,2]
[362244493,1748117468203,-985.75,0.00019643,2]
[362244494,1748117468212,-618.23,0.00019643,2]
[362244495,1748117468222,-849.67,0.00019643,2]
[362244496,1748117468231,-420.0,0.00019643,2]
[362244497,1748117468240,-151.0,0.00019643,2]
[362244498,1748117468250,-420.0,0.00019643,2]
[362244499,1748117468259,-1157.53,0.00019643,2]
[362244500,1748117468268,-886.04,0.00019643,2]
[362244501,1748117468277,-943.28,0.00019643,2]
[362244502,1748117468286,-5653.33,0.00019643,2]
[362244503,1748117468295,-529.4,0.00019643,2]
[362244504,1748117468304,-3961.59,0.00019643,2]
[362244505,1748117468313,-1625.46,0.00019643,2]
[362244506,1748117468322,-151.0,0.00019643,2]
[362244507,1748117468331,-2212.53,0.00019643,2]
[362244508,1748117468341,-11025.39,0.00019643,2]
[362244509,1748117468350,-151.0,0.00019643,2]
[362244510,1748117468359,-151.0,0.00019643,2]
[362244511,1748117468368,-497.422868,0.00019643,2]
[362244512,1748117468378,-497.422868,0.00019643,2]
[362244513,1748117468388,-1103.27,0.00019643,2]
[362244514,1748117468397,-915.43,0.00019643,2]
[362244515,1748117468406,-458.48,0.00019643,2]
[362244516,1748117468416,-1622.93,0.00019643,2]
[362244517,1748117468425,-263.93542,0.00019643,2]
[362244518,1748117468435,-151.0,0.00019643,2]
[362244519,1748117468444,-139411.7,0.00019643,2]
[362244520,1748117468454,-263.93542,0.00019643,2]
[362244521,1748117468463,-5710.99,0.00019643,2]
[362244522,1748117468473,-151.0,0.00019643,2]
[362244523,1748117468482,-2122.1,0.00019643,2]
[362244524,1748117468492,-506.07,0.00019643,2]
[362244525,1748117468501,-599.9,0.00019643,2]
[362244526,1748117468510,-2039.49,0.00019643,2]
[362244527,1748117468520,-420.0,0.00019643,2]
[362244528,1748117468529,-282.262676,0.00019643,2]
[362244529,1748117468538,-1336.66,0.00019643,2]
[362244530,1748117468548,-282.262676,0.00019643,2]
[362244531,1748117468557,-2331.45,0.00019643,2]
[362244532,1748117468566,-2331.48,0.00019643,2]
[362244533,1748117468576,-420.0,0.00019643,2]
[362244534,1748117468585,-431.03714386,0.00019643,2]
[362244535,1748117468594,-1010.17,0.00019643,2]
[362244536,1748117468604,-476.38,0.00019643,2]
[362244537,1748117468613,-2012.08,0.00019643,2]
[362244538,1748117468623,-6143.93,0.00019643,2]
[362244539,1748117468632,-540.73113365,0.00019643,2]
[362244540,1748117468641,-4396.86,0.00019643,2]
[362244541,1748117468651,-4230.85,0.00019643,2]
[362244542,1748117468660,-7374.08,0.00019643,2]
[362244543,1748117468669,-443.68,0.00019643,2]
[362244544,1748117468680,-1352.04,0.00019643,2]
[362244545,1748117468689,-420.0,0.00019643,2]
[362244546,1748117468698,-527.68,0.00019643,2]
[362244547,1748117468708,-151.0,0.00019643,2]
[362244548,1748117468717,-215.105622,0.00019643,2]
[362244549,1748117468725,-500.0,0.00019643,2]
[362244550,1748117468735,-500.0,0.00019643,2]
[362244551,1748117468743,-500.0,0.00019643,2]
[362244552,1748117468752,-500.0,0.00019643,2]
[362244553,1748117468761,-500.0,0.00019643,2]
[362244554,1748117468771,-500.0,0.00019643,2]
[362244555,1748117468779,-500.0,0.00019643,2]
[362244556,1748117468789,-500.0,0.00019643,2]
[362244557,1748117468798,-500.0,0.00019643,2]
[362244558,1748117468807,-713.21,0.00019643,2]
[362244559,1748117468816,-215.105622,0.00019643,2]
[362244560,1748117468826,-500.0,0.00019643,2]
[362244561,1748117468835,-2498.63,0.00019643,2]
[362244562,1748117468844,-500.0,0.00019643,2]
[362244563,1748117468853,-500.0,0.00019643,2]
[362244564,1748117468865,-500.0,0.00019643,2]
[362244565,1748117468874,-500.0,0.00019643,2]
[362244566,1748117468883,-500.0,0.00019643,2]
[362244567,1748117468892,-500.0,0.00019643,2]
[362244568,1748117468902,-500.0,0.00019643,2]
[362244569,1748117468911,-665.35,0.00019643,2]
[362244570,1748117468921,-500.0,0.00019643,2]
[362244571,1748117468931,-500.0,0.00019643,2]
[362244572,1748117468941,-500.0,0.00019643,2]
[362244573,1748117468951,-500.0,0.00019643,2]
[362244574,1748117468961,-500.0,0.00019643,2]
[362244575,1748117468970,-500.0,0.00019643,2]
[362244576,1748117468979,-500.0,0.00019643,2]
[362244577,1748117468989,-3833.23,0.00019643,2]
[362244578,1748117468998,-500.0,0.00019643,2]
[362244579,1748117469007,-500.0,0.00019643,2]
[362244580,1748117469017,-500.0,0.00019643,2]
[362244581,1748117469026,-762.0,0.00019643,2]
[362244582,1748117469035,-500.0,0.00019643,2]
[362244583,1748117469044,-500.0,0.00019643,2]
[362244584,1748117469053,-500.0,0.00019643,2]
[362244585,1748117469062,-500.0,0.00019643,2]
[362244586,1748117469072,-420.0,0.00019643,2]
[362244587,1748117469081,-508.45,0.00019643,2]
[362244588,1748117469090,-252.0,0.00019655,2]
[362244589,1748117469100,-911.32,0.00019666,2]
[362244590,1748117469109,-154.0,0.00019666,2]
[362244591,1748117469119,-6838.0,0.00019666,2]
[362244592,1748117469128,-4054.0,0.00019666,2]
[362244593,1748117469137,-152.464525,0.00019671,2]
[362244594,1748117469146,-1385.27,0.00019671,2]
[362244595,1748117469155,-908.32,0.00019671,2]
[362244596,1748117469165,-985.75,0.00019671,2]
[362244597,1748117469174,-618.23,0.00019671,2]
[362244598,1748117469183,-849.67,0.00019671,2]
[362244599,1748117469192,-420.0,0.00019671,2]
[362244600,1748117469202,-420.0,0.00019671,2]
[362244601,1748117469211,-1157.53,0.00019671,2]
[362244602,1748117469220,-886.04,0.00019671,2]
[362244603,1748117469229,-943.28,0.00019671,2]
[362244604,1748117469238,-5653.33,0.00019671,2]
[362244605,1748117469247,-529.4,0.00019671,2]
[362244606,1748117469256,-3961.59,0.00019671,2]
[362244607,1748117469265,-1625.46,0.00019671,2]
[362244608,1748117469274,-2212.53,0.00019671,2]
[362244609,1748117469283,-11025.39,0.00019671,2]
[362244610,1748117469293,-1103.27,0.00019671,2]
[362244611,1748117469302,-915.43,0.00019671,2]
[362244612,1748117469311,-458.48,0.00019671,2]
[362244613,1748117469321,-1622.93,0.00019671,2]
[362244614,1748117469331,-139411.7,0.00019671,2]
[362244615,1748117469341,-5710.99,0.00019671,2]
[362244616,1748117469350,-2122.1,0.00019671,2]
[362244617,1748117469359,-506.07,0.00019671,2]
[362244618,1748117469369,-599.9,0.00019671,2]
[362244619,1748117469379,-2039.49,0.00019671,2]
[362244620,1748117469390,-420.0,0.00019671,2]
[362244621,1748117469400,-1336.66,0.00019671,2]
[362244622,1748117469410,-2331.45,0.00019671,2]
[362244623,1748117469419,-2331.48,0.00019671,2]
[362244624,1748117469428,-420.0,0.00019671,2]
[362244625,1748117469438,-1010.17,0.00019671,2]
[362244626,1748117469447,-476.38,0.00019671,2]
[362244627,1748117469457,-2012.08,0.00019671,2]
[362244628,1748117469466,-154.12694,0.00019671,2]
[362244629,1748117469476,-6143.93,0.00019671,2]
[362244630,1748117469485,-4396.86,0.00019671,2]
[362244631,1748117469495,-4230.85,0.00019671,2]
[362244632,1748117469505,-3921.3466262,0.00019671,2]
[362244633,1748117470423,-389.42,0.00019178,2]
[362244634,1748117470435,-30.58,0.00019178,2]
[362244635,1748117470445,-420.0,0.00019178,2]
[362244636,1748117470456,-420.0,0.00019178,2]
[362244637,1748117470467,-420.0,0.00019178,2]
[362244638,1748117470477,-207.2545387,0.00019178,2]
[362244639,1748117470487,-420.0,0.00019178,2]
[362244640,1748117470497,-420.0,0.00019178,2]
[362244641,1748117470507,-420.0,0.00019178,2]
[362244642,1748117470519,-420.0,0.00019178,2]
[362244643,1748117470529,-420.0,0.00019178,2]
[362244644,1748117470538,-420.0,0.00019178,2]
[362244645,1748117470548,-420.0,0.00019178,2]
[362244646,1748117470557,-420.0,0.00019178,2]
[362244647,1748117470567,-420.0,0.00019178,2]
[362244648,1748117470578,-420.0,0.00019178,2]
[362244649,1748117470588,-278.3855722,0.00019205,2]
[362244650,1748117551878,252.17,0.00013699,2]
[362244652,1748117576004,-1021.27244061,0.00019105,2]
[362244653,1748117576025,-150.0,0.00019177,2]
[362244654,1748117576047,-420.0,0.00019178,2]
[362244655,1748117576069,-420.0,0.00019178,2]
[362244656,1748117576093,-1114.08,0.00019178,2]
[362244657,1748117576113,-420.0,0.00019178,2]
[362244658,1748117576134,-421.51836628,0.00019178,2]
[362244659,1748117576155,-420.0,0.00019178,2]
[362244660,1748117576177,-420.0,0.00019178,2]
[362244661,1748117576197,-420.0,0.00019178,2]
[362244662,1748117576218,-420.0,0.00019178,2]
[362244663,1748117576239,-420.0,0.00019178,2]
[362244664,1748117576260,-482.03579497,0.00019178,2]
[362244665,1748117576280,-420.0,0.00019178,2]
[362244666,1748117576301,-420.0,0.00019178,2]
[362244667,1748117576323,-420.0,0.00019178,2]
[362244668,1748117576345,-429.76664146,0.00019178,2]
[362244669,1748117576369,-420.0,0.00019178,2]
[362244670,1748117576390,-420.0,0.00019178,2]
[362244671,1748117576411,-420.0,0.00019178,2]
[362244672,1748117576433,-420.0,0.00019178,2]
[362244673,1748117576454,-420.0,0.00019178,2]
[362244674,1748117576476,-420.0,0.00019178,2]
[362244675,1748117576498,-420.0,0.00019178,2]
[362244676,1748117576518,-420.0,0.00019178,2]
[362244677,1748117576540,-420.0,0.00019178,2]
[362244678,1748117576567,-434.27936972,0.00019178,2]
[362244679,1748117576591,-465.84421264,0.00019178,2]
[362244680,1748117576612,-420.0,0.00019178,2]
[362244681,1748117576634,-420.0,0.00019178,2]